Cogmind - Beta 16 --- EXPLORER MODE // 2026.01.22 @ 10:07:26 Player: K.K.Y. Result: Destroyed by PW-592(R) with Subdweller Laser Performance ------------- Evolutions (0) 0 Regions Visited (3) 600 Robots Destroyed (36) 180 Value Destroyed (707) 707 Prototype IDs (0) 0 Alien Tech Used (0) 0 Bonus (0) 0 TOTAL SCORE: 1487 Bonus ------- None Cogmind --------- Core Integrity 0/250 Matter 226/300 Energy 34/100 System Corruption 0% Temperature Cool (12) Movement Core (450) Ox8 Location -10/Subcaves Parts ------- > --- POWER (1) -------- (None) > --- PROPULSION (2) --- (None) > --- UTILITY (3) ------ Improved Heat Sink Large Storage Unit Structural Scanner > --- WEAPON (2) ------- Medium Laser Particle Gun > --- INVENTORY (15) --- Light Treads Improved Terrain Scanner Light Armor Plating Grenade Launcher Mining Laser Peak State ------------ > --- POWER ------------ Light Nuclear Core > --- PROPULSION ------- Light Treads Light Treads > --- UTILITY ---------- Improved Heat Sink Large Storage Unit Structural Scanner > --- WEAPON ----------- Particle Gun Beam Cannon > --- INVENTORY -------- Light Treads Improved Terrain Scanner Light Armor Plating Medium Laser Particle Gun Grenade Launcher Mining Laser [Rating: 14] Favorites ----------- Power Ion Engine Engine Ion Engine Power Core Light Nuclear Core Propulsion Light Treads Treads Light Treads Utility Medium Storage Unit Device Structural Scanner Storage Medium Storage Unit Weapon Assault Rifle Energy Gun Particle Gun Energy Cannon Beam Cannon Ballistic Gun Assault Rifle Build | -11 -10 -10 -10 ------- Run | Yrd Mat Min Sub Slots Evolved 1 | . 1 . . Power . | . . . . Propulsion . | . . . . Utility 1 | . 1 . . Weapon . | . . . . Parts Attached 16 | 6 . 3 7 Power 2 | 1 . . 1 Engine 1 | 1 . . . Core 1 | . . . 1 Reactor . | . . . . Propulsion 3 | 2 . . 1 Treads 3 | 2 . . 1 Leg . | . . . . Wheel . | . . . . Hover . | . . . . Flight . | . . . . Utility 5 | 1 . 3 1 Device 3 | . . 2 1 Storage 2 | 1 . 1 . Processor . | . . . . Hackware . | . . . . Protection . | . . . . Artifact . | . . . . Weapon 6 | 2 . . 4 Energy Gun 3 | . . . 3 Energy Cannon 1 | . . . 1 Ballistic Gun 2 | 2 . . . Ballistic Cannon . | . . . . Launcher . | . . . . Special Weapon . | . . . . Impact Weapon . | . . . . Slashing Weapon . | . . . . Piercing Weapon . | . . . . Special Melee Weapon . | . . . . Unidentified Prototypes . | . . . . Parts Lost 10 | . . . 10 Power 2 | . . . 2 Propulsion 3 | . . . 3 Utility 1 | . . . 1 Weapon 4 | . . . 4 Highest Loss Streak 10 | . . . 10 To Critical Strikes 1 | . . . 1 Average Backups 7 | 1 6 10 11 Power . | . . . . Propulsion 1 | . 1 2 1 Utility 2 | . 2 2 2 Weapon 3 | . 2 5 5 Tool/Special . | . . . . Unused Backups 8 | 3 . . 5 Power . | . . . . Propulsion 1 | . . . 1 Utility 4 | 2 . . 2 Weapon 3 | 1 . . 2 Tool/Special . | . . . . Average Slot Usage (%) 84 | . 75 95 93 Engine 11 | . 12 12 9 Treads 24 | . 25 25 21 Device 10 | . . 20 24 Storage 12 | . 12 12 12 Ballistic Gun 24 | . 25 25 19 Peak Build Rating 14 | 7 7 10 14 Average Rating 7 | 5 6 8 9 On Entrance 5 | . 6 7 10 Avg Prop Armor Cover (%) . | . . . . Naked Turns . | . . . . Heaviest Build 33 | 19 19 31 33 Greatest Support 40 | 40 40 40 40 Greatest Overweight (x) 1 | 1 . . 1 Average Overweight (x) . | . . . . Largest Inventory Capacity 15 | 10 10 15 15 Average Capacity 11 | 9 10 12 15 Most Carried 12 | 4 10 12 12 Average Carried 7 | 1 6 10 10 Final Capacity 15 | 10 10 15 15 Final Carried 12 | 2 10 12 5 Class Distribution -------------------- 100% | Hacker-Mutant Dominant Class ---------------- Hacker-Mutant | -10/Materials Hacker-Mutant | -10/Mines Hacker-Mutant | -10/Subcaves Resources | -11 -10 -10 -10 ----------- Run | Yrd Mat Min Sub Matter Collected 698 | 374 174 120 30 Remotely . | . . . . Salvage Created 1171 | 228 364 276 303 Parts 86 | 21 26 20 19 Haulers Intercepted 2 | . 2 . . Recyclers Shooed . | . . . . Parts Field Recycled . | . . . . Retrieved Matter . | . . . . Parts Self-Destructed . | . . . . Prevented . | . . . . Parts Restored . | . . . . Kills | -11 -10 -10 -10 ------- Run | Yrd Mat Min Sub Combat Hostiles Destroyed 19 | . 5 7 7 Guns 17 | . 5 7 5 Cannons 2 | . . . 2 Classes Destroyed 7 | 2 4 . 1 Tunneler 10 | 9 1 . . Hauler 2 | . 2 . . Recycler 3 | 1 1 1 . Watcher 2 | . 2 . . Swarmer 6 | . 2 4 . Grunt 6 | . 3 3 . Subdweller 7 | . . . 7 Best Kill Streak 5 | 3 4 3 5 Combat Bots Only 5 | . 3 2 5 Max Kills in Single Turn 2 | 1 1 2 1 Gunslinging 1 | . . 1 . Exploded . | . . . . Melee . | . . . . Uniques/NPCs Destroyed . | . . . . Combat | -11 -10 -10 -10 -------- Run | Yrd Mat Min Sub Hostile Shots Fired 155 | . 19 23 113 Missed 48 | . 7 7 34 Hits 107 | . 12 16 79 Projectile 107 | . 12 16 79 Critical Strikes 4 | . . . 4 Damage Taken 1298 | . 87 126 1085 Core 257 | . 19 29 209 Absorbed by Shields . | . . . . Ignored by Resistances 787 | . 55 80 652 Core Remaining (%) 100 | 100 . . . Volleys Fired 89 | 19 29 15 26 Largest 2 | 2 2 2 2 Hottest 125 | 40 40 40 125 Shots Fired 175 | 38 58 30 49 Gun 162 | 38 58 30 36 Cannon 13 | . . . 13 Launcher . | . . . . Special . | . . . . Kinetic 154 | 38 58 30 28 Thermal 21 | . . . 21 Explosive . | . . . . Electromagnetic . | . . . . Robot Hit Streak 49 | 18 17 30 49 Robot Miss Streak 1 | 1 1 . 1 Penetration Max . | . . . . Secondary Targets 4 | . . 2 2 Max Gunslinging Chain 1 | . . 1 1 Shots Hit Robots 142 | 29 39 27 47 Core Hits 59 | 10 17 14 18 Critical Kills . | . . . . Critical Parts Destroyed 2 | . 1 1 . Critical Strikes 4 | . 1 1 2 Burn 2 | . . . 2 Destroy 2 | . 1 1 . Melee Attacks . | . . . . Impact . | . . . . Slashing . | . . . . Piercing . | . . . . Sneak Attacks . | . . . . Combat Hostiles . | . . . . Follow-up Attacks . | . . . . Damage Inflicted 1909 | 372 513 347 677 Guns 1682 | 372 513 347 450 Cannons 227 | . . . 227 Explosions . | . . . . Melee . | . . . . Ramming . | . . . . Kinetic 1564 | 372 513 347 332 Thermal 345 | . . . 345 Explosive . | . . . . Electromagnetic . | . . . . Impact . | . . . . Slashing . | . . . . Piercing . | . . . . Highest Corruption . | . . . . Average Corruption . | . . . . Corruption Purged . | . . . . Corruption Blocked . | . . . . Overload Shots . | . . . . Overflow Damage . | . . . . Projectiles . | . . . . Explosions . | . . . . Melee . | . . . . Knockbacks . | . . . . Impact . | . . . . Kinetic . | . . . . Secondary . | . . . . Self-Inflicted Damage . | . . . . Shots . | . . . . Rammed . | . . . . Targets Rammed . | . . . . Kicked . | . . . . Crushed . | . . . . Highest Temperature 2 | . 2 2 1 Average Temperature 1 | . 2 2 1 Received Heat Transfer 594 | . 72 99 423 Siege Activations . | . . . . Martial Activations . | . . . . Shielding Activations . | . . . . Robots Disrupted . | . . . . Combat Hostiles . | . . . . Robots Corrupted . | . . . . Combat Hostiles . | . . . . Parts Fried . | . . . . Impact Corruptions . | . . . . Robots Melted . | . . . . Combat Hostiles . | . . . . Parts Melted 1 | . . . 1 Heat Transferred 925 | . . . 925 Parts Sabotaged . | . . . . Parts Stolen . | . . . . Parts Stripped . | . . . . Power Chain Reactions . | . . . . Alert | -11 -10 -10 -10 ------- Run | Yrd Mat Min Sub Maximum Alert Level . | . . . . Low Security (%) 100 | 100 100 100 . Level 1 . | . . . . Level 2 . | . . . . Level 3 . | . . . . Level 4 . | . . . . Level 5 . | . . . . High Security . | . . . . Max Security . | . . . . Peak Influence 62 | 10 62 50 . Initial . | . . . . Average 4 | 1 4 5 . Influence Increases 436 | 50 201 185 . Destroy 0b10 Robot/C 240 | . 100 140 . Destroy 0b10 Robot/NC 85 | 50 30 5 . Destroy Leader 68 | . 28 40 . Trap Triggered on 0b10 20 | . 20 . . Successful Hack 23 | . 23 . . Influence Decreases 436 | 50 201 185 . Time Decay 429 | 50 194 185 . Purge Threat 7 | . 7 . . Squads Dispatched . | . . . . Investigation . | . . . . Extermination . | . . . . Reinforcement . | . . . . Assault . | . . . . Garrison . | . . . . Intercept . | . . . . Searches Triggered . | . . . . Construction Impeded . | . . . . Haulers Reinforced . | . . . . Active Scanning Responses . | . . . . Cargo Convoy Interrupts . | . . . . Stealth | -11 -10 -10 -10 --------- Run | Yrd Mat Min Sub Distress Signals 1 | . 1 . . Communications Jammed . | . . . . Distress Signals . | . . . . Times Spotted 31 | . 9 8 14 Peak Tracking Total 10 | . 5 2 10 Tactical Retreats . | . . . . Traps | -11 -10 -10 -10 ------- Run | Yrd Mat Min Sub Traps Triggered . | . . . . Indirectly . | . . . . Trap Hack Attempts . | . . . . Triggered . | . . . . Disarmed . | . . . . Reprogrammed 6 | . 6 . . Reused 2 | . 2 . . Traps Extracted . | . . . . Installed . | . . . . Triggered 2 | . 2 . . Machines | -11 -10 -10 -10 ---------- Run | Yrd Mat Min Sub Machines Disabled . | . . . . Max in Single Turn . | . . . . Machines Repaired . | . . . . Machines Dismantled . | . . . . Machines Sabotaged . | . . . . Overloaded Fab Kills . | . . . . Hacking | -11 -10 -10 -10 --------- Run | Yrd Mat Min Sub Machines Accessed 10 | . 10 . . Terminals 8 | . 8 . . Fabricators . | . . . . Repair Stations . | . . . . Recycling Units 2 | . 2 . . Scanalyzers . | . . . . Garrison Access . | . . . . Total Hacks 34 | . 34 . . Successful 19 | . 19 . . Failed 15 | . 15 . . Catastrophic . | . . . . Database Lockouts . | . . . . Manual 29 | . 29 . . Terminals 29 | . 29 . . Fabricators . | . . . . Repair Stations . | . . . . Recycling Units 5 | . 5 . . Scanalyzers . | . . . . Garrison Access . | . . . . Terminal Hacks 12 | . 12 . . Part Schematic 4 | . 4 . . Robot Schematic 4 | . 4 . . Unreport Threat 1 | . 1 . . Locate Traps 2 | . 2 . . Reprogram Traps 1 | . 1 . . Fabricator Hacks . | . . . . Repair Station Hacks . | . . . . Recycling Unit Hacks 2 | . 2 . . Retrieve Components 2 | . 2 . . Scanalyzer . | . . . . Garrison Access Hacks . | . . . . Unauthorized Hacks 5 | . 5 . . Terminals 5 | . 5 . . Botnet 5 | . 5 . . Fabricators . | . . . . Repair Stations . | . . . . Recycling Units . | . . . . Scanalyzers . | . . . . Garrison Access . | . . . . Data Cores Recovered . | . . . . Used . | . . . . Hacking Detections 6 | . 6 . . Full Trace Events 4 | . 4 . . Feedback Events . | . . . . Feedback Blocked . | . . . . Robot Schematics Acquired 4 | . 4 . . Robots Built . | . . . . Authchips . | . . . . Time . | . . . . Total Robot Build Rating . | . . . . Part Schematics Acquired 4 | . 4 . . Parts Built . | . . . . Authchips . | . . . . Time . | . . . . Total Part Build Rating . | . . . . Part Studies Acquired . | . . . . Parts Repaired . | . . . . Time . | . . . . Parts Recycled . | . . . . Recycled Matter . | . . . . Retrieved Matter . | . . . . Retrieved Components 12 | . 12 . . Parts Scanalyzed . | . . . . Part Schematics Acquired . | . . . . Parts Damaged . | . . . . Bothacking | -11 -10 -10 -10 ------------ Run | Yrd Mat Min Sub Used RIF Installer . | . . . . Robots Hacked . | . . . . Non-combat . | . . . . Combat . | . . . . Robot Hacks Applied . | . . . . Relay Couplers Released . | . . . . Fabnet Peak Effective % . | . . . . Robots Rewired . | . . . . Allies Hacked . | . . . . Hacks Repelled . | . . . . Allies | -11 -10 -10 -10 -------- Run | Yrd Mat Min Sub Total Allies . | . . . . Largest Group . | . . . . Highest-Rated Group . | . . . . Highest-Rated Ally . | . . . . Total Orders . | . . . . Ally Attacks . | . . . . Total Damage . | . . . . Kills . | . . . . Allies Corrupted . | . . . . Allies Melted . | . . . . Intel | -11 -10 -10 -10 ------- Run | Yrd Mat Min Sub Active Infowar (turns) 1164 | . . 968 196 Sensors 1120 | . . 967 153 Structural 1164 | . . 968 196 Robot Analysis Total . | . . . . Derelict Logs Recovered . | . . . . Drone Launches . | . . . . Drone Recoveries . | . . . . Exploration | -11 -10 -10 -10 ------------- Run | Yrd Mat Min Sub Turns Passed 3164 | 357 1442 1169 196 Spaces Moved 1749 | 188 839 657 65 Core 27 | 27 . . . Treads 1722 | 161 839 657 65 Legs . | . . . . Wheels . | . . . . Hover . | . . . . Flight . | . . . . Fastest Speed 50 | 50 160 160 160 Average Speed 158 | 149 160 160 162 Slowest Speed 240 | 160 160 160 240 Overloaded Moves . | . . . . Propulsion Burnouts . | . . . . Robots Hopped . | . . . . Potential Cave-ins . | . . . . Cave-ins Triggered . | . . . . Exploration Rate (%) 54 | 8 99 99 10 Regions Visited 3 Branch Regions 2 Pre-discovered Areas . | . . . . Known Exits Taken 3 | 1 1 1 . Unknown Exits Taken . | . . . . Scrap Searched 3 | . . 3 . Spaces Dug . | . . . . Terrain Destroyed . | . . . . Melee . | . . . . Projectile . | . . . . AOE . | . . . . Terrain Rammed . | . . . . Walls Destroyed . | . . . . Machines Disabled . | . . . . Actions | -11 -10 -10 -10 --------- Run | Yrd Mat Min Sub Total 1961 | 228 881 745 107 Wait 81 | . 6 66 9 Move 1746 | 187 838 656 65 Hop . | . . . . Pick Up 24 | 12 8 4 . Fast Attach . | . . . . Attach 15 | 6 . 2 7 Detach . | . . . . Swap 1 | . . 1 . Drop 5 | 4 . 1 . Fire 89 | 19 29 15 26 Melee . | . . . . Ram . | . . . . Kick . | . . . . Crush . | . . . . Escape Stasis . | . . . . Rewire . | . . . . Trap . | . . . . Miscellaneous . | . . . . Route ------- -11/Scrapyard -10/Materials (discovered 4 exits: *Mat x3 / *Min) -10/Mines (discovered 4 exits: *Mat x2 / Exi / *Sub) -10/Subcaves History --------- Turn | Location | Event 20 | -11/Scrapyard | Identified exit to Materials 20 | -11/Scrapyard | Discovered exit to Materials (range 15) 358 | -11/Scrapyard | Entered Materials 358 | -10/Materials | Evolved 1 slot: Utility x1 359 | -10/Materials | Build established: Hacker-Mutant 621 | -10/Materials | Identified exit to Materials 621 | -10/Materials | Discovered exit to Materials (range 5) 868 | -10/Materials | Identified exit to Mines 868 | -10/Materials | Discovered exit to Mines (range 13) 1067 | -10/Materials | Discovered exit to Materials (range 8) 1362 | -10/Materials | Discovered exit to Materials (range 16) 1800 | -10/Materials | Entered Mines 1834 | -10/Mines | Discovered exit to Materials (range 12) 2078 | -10/Mines | Identified exit to Subcaves 2078 | -10/Mines | Discovered exit to Subcaves (range 9) 2537 | -10/Mines | Deemed a non-threat by the Exiles lab entrance 2537 | -10/Mines | Identified exit to Exiles 2537 | -10/Mines | Discovered exit to Exiles (range 6) 2706 | -10/Mines | Discovered exit to Materials (range 6) 2969 | -10/Mines | Entered Subcaves 2970 | -10/Subcaves | Approached by a straggling Scientist 3089 | -10/Subcaves | Ambushed by swarm of Subdwellers 3091 | -10/Subcaves | Ambushed by Subdwellers from Twisted Machinery 3091 | -10/Subcaves | Ambushed by Subdwellers from Twisted Machinery 3092 | -10/Subcaves | Ambushed by Subdwellers from Twisted Machinery 3092 | -10/Subcaves | Ambushed by Subdwellers from Twisted Machinery 3119 | -10/Subcaves | Core integrity fell below 50% 3139 | -10/Subcaves | Lost 5 allies 3159 | -10/Subcaves | Core integrity fell below 20% 3165 | -10/Subcaves | Destroyed by PW-592(R) with Subdweller Laser Last Messages --------------- 03140_ 5O-P8G(R) affixes Scrap Shield Fragment to Scrap Shield. 03140_ WQ-D8S(R) suffers critical hit (Burn). 03145_ Lgt. Treads destroyed. 03146_ WQ-D8S(R) affixes Scrap Shield Fragment to Scrap Shield. 03149_ Lgt. Treads destroyed. 03149_ 5O-P8G(R) destroyed. 03155_ Lgt. Nuclear Core destroyed. 03155_ Particle Gun destroyed. 03157_ PW-592(R) affixes Scrap Shield Fragment to Scrap Shield. 03160_ Beam Cannon destroyed. 03162_ WQ-D8S(R) affixes Scrap Shield Fragment to Scrap Shield. 03163_ WQ-D8S(R) suffers critical hit (Burn). 03163_ WQ-D8S(R) destroyed. 03163_ Switching to secondary target: B0-BC6(R). 03164_ PW-592(R) affixes Scrap Shield Fragment to Scrap Shield. Map ----- +----------------------------------------------------+ | ?????????????????????????????????????????????????? | | ?????????????????????????????????????????????????? | | ?????????????????????????????????????????????????? | | ?????????????????????????????????????????????????? | | ?????????????????????????????????????????????????? | | ?????????????????????????????????????????????????? | | ?????????????????????????????????????????????????? | | ?????????????????????????????????????????????????? | | ?????????????????????????????????????????????????? | | ?????????????????????????## ??????????? ?????????? | | ????????????????????????### ????### ????????? | | ????????????????????????## ##???#### #??????? | | ???????????????????????? ##???## ##?####?? | | ???????????????????????? ###?? ##?#####? | | ???????????????????????? ####??? #### #### | | ?????????????????????? ### ####??## #### ### | | ?????????????????????? ### ####### ## ## | | ??????????????????????## ;###### # | | ??????????????????????## ### ## # | | ??????????????????????## ### ## | | ??????????????????????### #### ## ### | | ???????????????????????## ### ;"# ### | | ?????????????????????#### #;"# ##### | | ????????????????????##### [ ; # # ### | | ???????????????????#### & & ! % # | | ????????????????###### @!%%& !%= =%[ = | | ???????????????###### !&*%[ !;;"### # | | ???????????????## !R*[%%!* ## ####### # | | ?????????? R%%*=# #### ###### # | | ?????????? !&[%!% ##### #### | | ??????????? &&##=# ##### #### | | ??????????? ## ########?### #### ### | | ???????????? ###### #########?############## | | ????????????? ###### ## ###?????????############ | | ??????????????????####### ##?????????????????????? | | ??????????????????##########?????????????????????? | | ???????????????????????#####?????????????????????? | | ?????????????????????????????????????????????????? | | ?????????????????????????????????????????????????? | | ?????????????????????????????????????????????????? | | ?????????????????????????????????????????????????? | | ?????????????????????????????????????????????????? | | ?????????????????????????????????????????????????? | | ?????????????????????????????????????????????????? | | ?????????????????????????????????????????????????? | | ?????????????????????????????????????????????????? | | ?????????????????????????????????????????????????? | | ?????????????????????????????????????????????????? | | ?????????????????????????????????????????????????? | | ?????????????????????????????????????????????????? | +----------------------------------------------------+ Best States ------------- Heat Dissipation 39 Energy Generation 14 Energy Capacity 250 Matter Stores 300 Matter Capacity 300 Sight Range 16 Robot Scan Range 14 Terrain Scan Density 10 Resistance: KI 35 Resistance: TH 35 Resistance: EX 35 Resistance: EM 35 Resistance: I 35 Resistance: S 35 Resistance: P 35 Evasion (%) 40 Recoil Reduction 2 Offensive Hacking 20 Item Schematics ----------------- Huge Storage Unit | -10/Materials | Hacked Cargo Storage Unit | -10/Materials | Hacked Structural Scanner | -10/Materials | Hacked Lrg. Storage Unit | -10/Materials | Hacked Robot Schematics ------------------ G-34 Mercenary | -10/Materials | Hacked W-16 Scout | -10/Materials | Hacked S-10 Pest | -10/Materials | Hacked R-06 Scavenger | -10/Materials | Hacked Fabricated ------------ Nothing Repaired ---------- Nothing Studied --------- None Alien Tech Used ----------------- None Achievements -------------- None Challenges ------------ None Game ------ Seed TrackerCloakAnalyzer Manual? 0 Play Time 00:14:46 Cumulative 300.9 hours Start 2026.01.22 @ 09:54:26 End 2026.01.22 @ 10:07:26 Sessions 1 Manual Loads 0 Difficulty Explorer Special Mode None Game No. 467 Rogue 0 Adventurer 0 Explorer 467 Win Type - Total 0 Types 0/0/0/0/0/0/0/0/0/0 Lore% 76 Gallery% 70 Achievement% 55 Wizard Run 0 Options --------- Layout 1 ASCII 0 Keyboard 0 Movement Mouse Keybinds 1 Fullscreen 1 Font 24/Smallcaps Map View 50x35 Zoom Use 0% Tactical HUD 1 Map Filters NONE Filters NONE Steam 1 RUN: 920de18a-8dc1-49b8-9b93-0e53aee7312b